bitfinex/quotes_SOLUSD_20241019
["timestamp","ask_amount","ask_price","bid_price","bid_amount"]
[1729357618770,6.3982,156.3,156.22,21.234]
[1729357618982,6.3982,156.3,156.23,9.16047171]
[1729357619153,6.3982,156.3,156.24,29.53174538]
[1729357619355,6.3982,156.3,156.25,2.21324978]
[1729357619548,6.3982,156.3,156.23,23.776884]
[1729357619866,6.3982,156.3,156.24,5.75491599]
[1729357620051,6.3982,156.3,156.25,2.21328872]
[1729357620254,6.3982,156.3,156.23,23.776884]
[1729357620573,6.3982,156.3,156.24,5.75494883]
[1729357620753,6.3982,156.3,156.25,2.2132834]
[1729357620949,6.3982,156.3,156.23,23.776884]
[1729357621149,6.3982,156.3,156.24,5.75515019]
[1729357621452,6.3982,156.3,156.25,2.21336085]
[1729357621761,6.3982,156.3,156.23,23.776884]
[1729357621948,6.3982,156.3,156.24,5.75513707]
[1729357622149,6.3975,156.31,156.25,5.75483024]
[1729357622366,6.3975,156.31,156.26,2.2133558]
[1729357622576,6.3975,156.31,156.25,23.776884]
[1729357622875,6.3975,156.31,156.26,2.21320073]
[1729357623074,6.3975,156.31,156.24,3.40544872]
[1729357623282,6.3975,156.31,156.25,5.7547033]
[1729357623568,6.3975,156.31,156.26,2.21318897]
[1729357623753,6.3975,156.31,156.27,2.21318629]
[1729357623955,6.3975,156.31,156.25,3.40516399]
[1729357624163,6.3975,156.31,156.26,5.75463299]
[1729357624463,6.3975,156.31,156.27,2.21327195]
[1729357624772,6.3975,156.31,156.23,23.776884]
[1729357624969,6.3975,156.31,156.25,23.776884]
[1729357625183,6.3975,156.31,156.26,5.7550776]
[1729357625352,6.3975,156.31,156.27,2.21333292]
[1729357625555,6.3975,156.31,156.25,23.776884]
[1729357625768,36.5642,156.33,156.26,2.21341009]
[1729357625949,6.3972,156.32,156.27,2.21341009]
[1729357626152,6.3972,156.32,156.25,23.776884]
[1729357626453,6.3972,156.32,156.26,5.75545334]
[1729357626665,6.3972,156.32,156.27,2.21347743]
[1729357626849,6.3972,156.32,156.28,2.21347743]
[1729357627052,6.3972,156.32,156.25,23.776884]
[1729357627271,6.3972,156.32,156.26,5.7552077]
[1729357627552,6.3972,156.32,156.27,2.21338295]
[1729357627770,6.3972,156.32,156.25,23.776884]
[1729357627970,6.3972,156.32,156.26,5.75533314]
[1729357628172,6.3972,156.32,156.27,2.21347847]
[1729357628355,6.3972,156.32,156.25,23.776884]
[1729357628692,6.3972,156.32,156.26,5.75580261]
[1729357628873,6.3972,156.32,156.27,2.21361175]
[1729357629047,6.3972,156.32,156.25,23.776884]
[1729357629250,6.3972,156.32,156.26,5.75598522]
[1729357629448,6.3972,156.32,156.27,2.21368198]
[1729357629671,6.3972,156.32,156.28,2.2137282]
[1729357629870,6.3972,156.32,156.25,23.776884]
[1729357630089,6.3972,156.32,156.26,5.75607598]
[1729357630275,6.3972,156.32,156.27,2.21371689]
[1729357630456,6.3972,156.32,156.28,2.21371689]
[1729357630776,6.3972,156.32,156.25,23.776884]
[1729357630978,6.3972,156.32,156.26,5.75628052]
[1729357631183,6.3972,156.32,156.27,2.21379555]
[1729357631367,6.3972,156.32,156.28,2.21379555]
[1729357631689,6.3972,156.32,156.25,23.776884]
[1729357631976,6.3972,156.32,156.26,5.75658089]
[1729357632167,6.3972,156.32,156.27,2.21391107]
[1729357632368,6.3972,156.32,156.28,2.21391107]
[1729357632571,6.3972,156.32,156.25,23.776884]
[1729357632758,6.3972,156.32,156.26,5.75694944]
[1729357632956,6.3972,156.32,156.25,23.776884]
[1729357632957,6.3972,156.32,156.27,2.21405281]
[1729357633157,6.3972,156.32,156.28,2.21405281]
[1729357633360,6.3972,156.32,156.25,23.776884]
[1729357633576,6.3972,156.32,156.26,5.75727421]
[1729357633878,6.3977,156.31,156.27,2.21417771]
[1729357634055,6.3977,156.31,156.28,2.21417771]
[1729357634254,6.3977,156.31,156.25,23.776884]
[1729357634454,6.3977,156.31,156.26,5.75753621]
[1729357634687,6.3977,156.31,156.27,2.21427847]
[1729357634887,6.3977,156.31,156.28,2.21427847]
[1729357635180,6.3977,156.31,156.25,23.776884]
[1729357635380,6.3977,156.31,156.26,5.75784823]
[1729357635566,6.3977,156.31,156.27,2.21439847]
[1729357635768,6.3977,156.31,156.28,2.21439847]
[1729357635974,6.3977,156.31,156.25,23.776884]
[1729357636165,6.3977,156.31,156.26,5.75787647]
[1729357636363,6.3977,156.31,156.27,5.75787647]
[1729357636565,6.3977,156.31,156.28,2.21440933]
[1729357636777,6.3977,156.31,156.25,23.776884]
[1729357636985,6.3977,156.31,156.26,5.75822546]
[1729357637187,6.3977,156.31,156.27,2.21454355]
[1729357637372,6.3983,156.3,156.28,2.21454355]
[1729357637579,6.3983,156.3,156.23,3.40515163]
[1729357637761,36.5642,156.33,156.24,9.16336226]
[1729357638075,6.3983,156.29,156.25,5.75821063]
[1729357638273,6.3983,156.29,156.26,2.21453784]
[1729357638487,6.3983,156.29,156.22,21.234]
[1729357638784,6.3983,156.29,156.23,3.40518739]
[1729357638984,6.3983,156.29,156.24,5.75849823]
[1729357639188,6.3983,156.29,156.22,21.234]
[1729357639372,6.3983,156.29,156.25,3.54389415]
[1729357639572,6.3983,156.29,156.26,2.21467618]
[1729357639888,6.3983,156.29,156.23,23.776884]
[1729357640097,6.3983,156.29,156.24,5.75824245]
[1729357640383,6.3983,156.29,156.25,5.75824245]
[1729357640577,6.3983,156.29,156.26,2.21455008]
[1729357640784,6.3983,156.29,156.23,23.776884]
[1729357640988,6.3983,156.29,156.24,5.75794505]
[1729357641198,6.3983,156.29,156.25,5.75794505]
[1729357641374,6.3983,156.29,156.23,23.776884]
[1729357641375,6.3983,156.29,156.26,2.2144357]
[1729357641684,6.3983,156.29,156.23,23.776884]
[1729357641878,6.3983,156.29,156.24,5.75772556]
[1729357642083,6.3983,156.29,156.25,2.21435129]
[1729357642382,6.3983,156.29,156.23,23.776884]
[1729357642383,6.3983,156.29,156.26,2.21435129]
[1729357642560,6.3983,156.29,156.23,23.776884]
[1729357642761,6.3983,156.29,156.24,5.75718095]
[1729357642967,6.3983,156.29,156.25,5.75718095]
[1729357643166,6.3983,156.29,156.23,23.776884]
[1729357643167,6.3983,156.29,156.26,2.21414183]
[1729357643380,6.3983,156.29,156.23,23.776884]
[1729357643592,6.3983,156.29,156.24,5.75691921]
[1729357643762,6.3983,156.29,156.25,2.21404117]
[1729357643965,6.3983,156.29,156.26,2.21404117]
[1729357644265,6.3983,156.29,156.23,23.776884]
[1729357644465,6.3983,156.29,156.24,5.75657379]
[1729357644677,6.3983,156.29,156.25,2.21390833]
[1729357644877,6.3983,156.29,156.26,2.21390833]
[1729357645079,6.3983,156.29,156.23,23.776884]
[1729357645298,6.3983,156.29,156.24,5.75654235]
[1729357645579,6.3983,156.29,156.25,5.75654235]
[1729357645786,6.3983,156.29,156.26,2.21389624]
[1729357645973,6.3983,156.29,156.23,23.776884]
[1729357646162,6.3983,156.29,156.24,5.75639034]
[1729357646357,6.3983,156.29,156.23,23.776884]
[1729357646581,6.3978,156.31,156.23,23.776884]
[1729357646759,6.3978,156.31,156.24,5.75614218]
[1729357646962,6.3978,156.31,156.25,2.21374234]
[1729357647160,6.3978,156.31,156.26,2.21374234]
[1729357647461,6.3978,156.31,156.23,23.776884]
[1729357647802,6.3978,156.31,156.24,5.75591104]
[1729357648093,6.3978,156.31,156.25,2.21365345]
[1729357648277,6.3978,156.31,156.26,2.21365345]
[1729357648577,6.3978,156.31,156.23,23.776884]
[1729357648777,6.3978,156.31,156.24,5.75562776]
[1729357648977,6.3978,156.31,156.25,2.2135445]
[1729357649197,6.3978,156.31,156.26,2.2135445]
[1729357649487,6.3978,156.31,156.23,23.776884]
[1729357649693,6.3978,156.31,156.24,5.75545377]
[1729357649990,6.3978,156.31,156.25,2.21347759]
[1729357650168,6.3978,156.31,156.26,2.21347759]
[1729357650365,6.3978,156.31,156.23,23.776884]
[1729357650591,6.3978,156.31,156.24,5.75530819]
[1729357650890,6.3978,156.31,156.25,2.2134216]
[1729357651076,6.3978,156.31,156.26,2.2134216]
[1729357651279,6.3978,156.31,156.23,23.776884]
[1729357651487,6.3978,156.31,156.24,5.75512734]
[1729357651673,6.3978,156.31,156.25,2.21335205]
[1729357651870,6.3978,156.31,156.26,2.21335205]
[1729357652071,6.3978,156.31,156.23,23.776884]
[1729357652274,6.3978,156.31,156.24,5.75522173]
[1729357652472,6.3978,156.31,156.25,2.21338835]
[1729357652673,6.3978,156.31,156.26,2.21338835]
[1729357652876,6.3978,156.31,156.23,23.776884]
[1729357653068,6.3978,156.31,156.24,5.75510431]
[1729357653378,6.3978,156.31,156.25,2.21334319]
[1729357653580,6.3978,156.31,156.26,2.2132811]
[1729357653893,6.3978,156.31,156.23,23.776884]
[1729357654067,6.3978,156.31,156.24,5.75494768]
[1729357654269,6.3978,156.31,156.25,2.21328295]
[1729357654482,6.3978,156.31,156.26,2.21328295]
[1729357654682,6.3978,156.31,156.23,23.776884]
[1729357654890,6.3978,156.31,156.24,5.75490803]
[1729357655096,6.3978,156.31,156.25,2.2132677]
[1729357655389,6.3978,156.31,156.26,2.2132677]
[1729357655591,6.3978,156.31,156.23,23.776884]
[1729357655791,6.3978,156.31,156.24,5.75488271]
[1729357655987,6.3978,156.31,156.25,2.21325796]
[1729357656293,6.3978,156.31,156.26,2.21325796]
[1729357656497,6.3978,156.31,156.23,23.776884]
[1729357656667,6.3978,156.31,156.24,5.75486645]
[1729357656867,6.3978,156.31,156.25,2.21325171]
[1729357657173,6.3978,156.31,156.26,2.21325174]
[1729357657374,6.3978,156.31,156.23,23.776884]
[1729357657573,6.3978,156.31,156.24,5.75496239]
[1729357657875,6.3978,156.31,156.25,2.21328861]
[1729357658167,6.3978,156.31,156.26,2.21328861]
[1729357658371,6.3979,156.3,156.24,3.4059403]
[1729357658579,6.3979,156.3,156.25,2.21334493]
[1729357658783,6.3979,156.3,156.23,23.776884]
[1729357658997,6.3979,156.3,156.24,5.75517459]
[1729357659183,6.3979,156.3,156.25,2.21337022]
[1729357659382,6.3979,156.3,156.26,2.21330652]
[1729357659584,6.3979,156.3,156.24,3.40610853]
[1729357659777,6.3979,156.3,156.25,5.75506528]
[1729357660111,6.3979,156.3,156.26,2.21332818]
[1729357660309,6.3979,156.3,156.24,3.40645439]
[1729357660495,6.3979,156.3,156.25,5.75519121]
[1729357660814,6.3979,156.3,156.23,23.776884]
[1729357660981,6.3979,156.3,156.24,5.75509479]
[1729357661297,6.3979,156.3,156.25,5.75509117]
[1729357661599,6.3979,156.3,156.26,2.21333814]
[1729357661775,6.3979,156.3,156.24,3.40643623]
[1729357661975,6.3979,156.3,156.25,5.75508466]
[1729357662171,6.3979,156.3,156.26,2.21333563]
[1729357662389,6.3979,156.3,156.24,3.40643623]
[1729357662588,6.3979,156.3,156.25,5.75527081]
[1729357662791,6.3979,156.3,156.26,2.21340722]
[1729357662997,6.3979,156.3,156.24,3.40643623]
[1729357663177,6.3979,156.31,156.25,9.16313891]
[1729357663379,6.3979,156.3,156.26,2.21341475]
[1729357663598,6.3979,156.3,156.24,3.40643623]
[1729357663811,20.0,156.31,156.25,32.94031059]
[1729357663998,20.0,156.31,156.26,2.21350713]
[1729357664186,20.0,156.31,156.27,2.21350713]
[1729357664381,20.0,156.31,156.25,23.776884]
[1729357664601,20.0,156.31,156.26,2.21419827]
[1729357664800,20.0,156.31,156.27,2.21419827]
[1729357664998,20.0,156.31,156.25,23.776884]
[1729357665198,20.0,156.31,156.26,2.21419896]
[1729357665399,20.0,156.31,156.27,2.21419896]
[1729357665606,20.0,156.31,156.25,23.776884]
[1729357665787,20.0,156.31,156.26,2.21434935]
[1729357665987,20.0,156.31,156.27,2.21434935]
[1729357666292,20.0,156.31,156.25,23.776884]
[1729357666608,20.0,156.31,156.26,2.21450468]
[1729357666805,20.0,156.31,156.27,2.21450468]
[1729357666994,20.0,156.31,156.25,23.776884]
[1729357667305,20.0,156.31,156.26,2.21450528]
[1729357667507,26.3975,156.32,156.27,2.21450528]
[1729357667700,6.3975,156.31,156.25,23.776884]
[1729357668006,6.3975,156.31,156.26,5.75858201]
[1729357668212,6.3975,156.31,156.27,2.21468075]
[1729357668389,6.3975,156.31,156.25,23.776884]
[1729357668581,6.3975,156.31,156.26,5.75909747]
[1729357668781,6.3975,156.31,156.27,2.21487899]
[1729357668981,6.3975,156.31,156.25,23.776884]
[1729357669197,6.3975,156.31,156.26,5.75909637]
[1729357669410,6.3975,156.31,156.27,2.21487857]
[1729357669613,6.3975,156.31,156.25,23.776884]
[1729357669784,6.3975,156.31,156.26,5.75964452]
[1729357670118,6.3975,156.31,156.27,2.21508938]
[1729357670295,6.3975,156.31,156.25,23.776884]
[1729357670494,6.3975,156.31,156.26,5.76021331]
[1729357670684,6.3975,156.31,156.25,23.776884]
[1729357670685,6.3975,156.31,156.27,2.21530813]
[1729357670884,6.3975,156.31,156.25,23.776884]
[1729357671103,6.3975,156.31,156.26,5.76015949]
[1729357671305,6.3975,156.31,156.27,2.21528743]
[1729357671498,6.3981,156.3,156.22,21.234]
[1729357671699,6.3981,156.3,156.23,32.94570398]
[1729357671913,6.3981,156.3,156.24,3.40802303]
[1729357672207,6.3981,156.3,156.25,5.76080073]
[1729357672408,6.3981,156.3,156.26,5.76080073]
[1729357672710,6.3981,156.3,156.27,2.21553404]
[1729357673007,6.3981,156.3,156.24,3.40809263]
[1729357673214,6.3981,156.3,156.25,9.16957349]
[1729357673385,6.3981,156.3,156.26,5.76148086]
[1729357673586,6.3981,156.3,156.27,2.21579561]
[1729357673805,6.3981,156.3,156.24,3.40824638]
[1729357674004,6.3981,156.3,156.25,9.1702105]
[1729357674194,6.3981,156.3,156.26,5.76196412]
[1729357674495,6.3981,156.3,156.27,2.21598146]
[1729357674693,6.3981,156.3,156.23,23.776884]
[1729357674893,6.3981,156.3,156.24,9.17084312]
[1729357677101,30.0,156.29,156.24,3.40849593]
[1729357677311,30.0,156.29,156.25,9.17304028]
[1729357677513,30.0,156.29,156.26,5.76454435]
[1729357677690,30.0,156.29,156.27,2.21697379]
[1729357678012,30.0,156.29,156.28,2.21697379]
[1729357679956,36.3983,156.29,156.28,2.21697379]
[1729357680240,36.3983,156.29,156.23,23.776884]
[1729357680432,36.3983,156.29,156.24,9.1731851]
[1729357680639,36.3983,156.29,156.25,9.1731851]
[1729357680940,36.3983,156.29,156.26,5.76404199]
[1729357681135,36.3983,156.29,156.27,2.21678055]
[1729357681338,36.3983,156.29,156.23,23.776884]
[1729357681630,30.0,156.29,156.24,5.76431139]
[1729357681833,30.0,156.29,156.25,5.76438387]
[1729357682019,30.0,156.29,156.26,2.21691205]
[1729357682219,30.0,156.29,156.25,3.40929818]
[1729357682521,30.0,156.29,156.26,2.21701012]
[1729357682692,30.0,156.29,156.24,3.40926444]
[1729357682892,30.0,156.29,156.25,5.62657687]
[1729357683093,30.0,156.29,156.26,2.21704627]
[1729357683295,30.0,156.29,156.24,3.40926444]
[1729357683515,30.0,156.29,156.25,5.62673282]
[1729357683816,30.0,156.29,156.26,2.21699123]
[1729357684016,30.0,156.29,156.24,3.40926444]
[1729357684195,30.0,156.29,156.25,5.62673293]
[1729357684397,30.0,156.29,156.26,2.21699187]
[1729357684602,30.0,156.29,156.24,3.40926444]
[1729357685137,30.0,156.29,156.25,5.62674911]
[1729357685440,30.0,156.29,156.26,2.21702099]
[1729357685605,30.0,156.29,156.24,3.40926444]
[1729357685805,30.0,156.29,156.25,5.62681197]
[1729357686118,30.0,156.29,156.26,2.21703963]
[1729357686327,36.1851,156.28,156.24,3.40926444]
[1729357686520,30.0,156.26,156.24,3.40926444]
[1729357686698,6.4,156.25,156.24,3.40926444]
[1729357687213,26.4,156.25,156.24,3.40926444]
[1729357687403,72.469084,156.25,156.24,3.40926444]
[1729357687594,6.4026,156.19,156.1,23.001]
[1729357687902,20.0,156.23,156.11,5.62590488]
[1729357688219,6.4027,156.19,156.12,2.21610735]
[1729357688443,6.4027,156.19,156.13,2.21610317]
[1729357688733,6.4027,156.19,156.14,2.21610317]
[1729357688899,6.4027,156.19,156.1,23.001]
[1729357688900,6.4027,156.19,156.15,2.21610317]
[1729357689104,6.4027,156.19,156.16,2.21610317]
[1729357689315,6.4027,156.19,156.11,23.776884]
[1729357689498,6.4027,156.19,156.13,23.776884]
[1729357689701,6.4027,156.19,156.14,2.21201714]
[1729357689899,6.4027,156.19,156.15,2.21201714]
[1729357690112,30.0,156.18,156.11,23.776884]
[1729357690322,30.0,156.18,156.13,23.776884]
[1729357690525,30.0,156.18,156.14,2.21202991]
[1729357690818,30.0,156.18,156.15,2.21202991]
[1729357691022,30.0,156.18,156.13,23.776884]
[1729357691318,30.0,156.18,156.14,2.21063257]
[1729357691496,30.0,156.18,156.15,2.20945619]
[1729357691703,30.0,156.18,156.13,23.776884]
[1729357692201,30.0,156.18,156.14,2.20980173]
[1729357692398,30.0,156.18,156.13,23.776884]
[1729357692701,30.0,156.18,156.14,2.2088628]
[1729357692898,30.0,156.18,156.13,23.776884]
[1729357693096,30.0,156.18,156.14,2.20876137]
[1729357693321,15.08567683,156.24,156.15,48.98664537]
[1729357693533,15.08567683,156.24,156.17,23.776884]
[1729357694026,15.08567683,156.24,156.16,23.776884]
[1729357694208,15.08567683,156.24,156.17,2.20832348]
[1729357694603,20.0,156.23,156.17,2.20832348]
[1729357695000,6.4029,156.18,156.16,2.20832348]
[1729357695206,6.4029,156.18,156.12,2.20811107]
[1729357695411,6.4029,156.18,156.13,2.20811107]
[1729357695608,20.0,156.23,156.11,23.001]
[1729357695609,20.0,156.2,156.14,2.20811107]
[1729357695901,6.4032,156.17,156.12,2.20811107]
[1729357696102,6.4032,156.17,156.13,2.20811107]
[1729357696307,6.4032,156.17,156.12,2.20672271]
[1729357696505,6.4032,156.17,156.13,2.20672271]
[1729357696724,6.4032,156.17,156.11,23.001]
[1729357696725,6.4032,156.17,156.12,2.20672271]
[1729357696899,6.4032,156.17,156.13,2.20672271]
[1729357697099,6.4032,156.17,156.12,2.20672271]
[1729357697423,20.0,156.2,156.13,2.20672271]
[1729357697424,6.4029,156.18,156.13,2.20672271]
[1729357697621,6.4029,156.18,156.12,2.20672271]
[1729357697933,6.4029,156.18,156.13,2.20672271]
[1729357698101,6.4029,156.18,156.11,23.001]
[1729357698102,6.4029,156.18,156.12,2.20672271]
[1729357700413,6.4031,156.18,156.12,2.20672271]
[1729357700805,36.1851,156.2,156.12,2.20672271]
[1729357701125,6.4035,156.17,156.1,2.20672271]
[1729357703126,6.4035,156.17,156.1,25.98042403]
[1729357703323,6.4035,156.17,156.11,2.20354003]
[1729357703501,6.4035,156.17,156.1,23.776884]
[1729357703706,6.4035,156.17,156.11,2.20318035]
[1729357706812,6.4035,156.17,156.11,2.20207651]
[1729357707221,6.4035,156.17,156.1,23.776884]
[1729357710127,36.1851,156.2,156.1,23.776884]
[1729357710430,20.0,156.18,156.1,23.776884]
[1729357713729,20.0,156.17,156.1,23.776884]
[1729357719737,16.1851,156.2,156.1,23.776884]
[1729357719912,22.5872,156.2,156.1,23.776884]
[1729357720113,22.5872,156.2,156.11,2.1998101]
[1729357720412,22.5872,156.2,156.12,44.890484]
[1729357730436,22.5872,156.2,156.13,3.34153011]
[1729357731345,6.4021,156.2,156.13,3.34153011]
[1729357731646,6.4021,156.2,156.14,3.34153011]
[1729357731950,6.4021,156.2,156.12,44.890484]
[1729357732149,6.4021,156.2,156.13,3.34444933]
[1729357732329,6.4021,156.2,156.14,3.34444933]
[1729357732949,6.4021,156.2,156.15,3.34444933]
[1729357733149,6.4021,156.2,156.12,44.890484]
[1729357733325,6.4021,156.2,156.13,3.34850341]
[1729357733531,6.4021,156.2,156.14,3.34850341]
[1729357733834,6.4021,156.2,156.15,3.34850341]
[1729357734039,6.4021,156.2,156.16,3.34850341]
[1729357734229,6.4021,156.2,156.12,44.890484]
[1729357734428,6.4021,156.2,156.13,3.35056622]
[1729357734764,6.4021,156.2,156.14,3.35056622]
[1729357735056,6.4021,156.2,156.15,3.35056622]
[1729357735250,6.4021,156.2,156.12,44.890484]
[1729357735562,6.4021,156.2,156.13,3.35053689]
[1729357735730,6.4021,156.2,156.12,44.890484]
[1729357736153,6.4021,156.2,156.13,3.35055135]
[1729357736338,6.4021,156.2,156.14,3.35055135]
[1729357736542,6.4021,156.2,156.15,3.35055135]
[1729357737463,6.4021,156.2,156.16,3.3505168]
[1729357737660,6.4021,156.2,156.15,3.35055135]
[1729357737948,6.4021,156.2,156.16,3.35050811]
[1729357738156,6.4021,156.2,156.13,2.20628221]
[1729357738342,6.4021,156.2,156.14,3.35050811]
[1729357738525,6.4021,156.2,156.15,3.35050811]
[1729357738725,6.4021,156.2,156.13,2.20628221]
[1729357739030,6.4021,156.2,156.14,3.35053526]
[1729357739231,6.4021,156.2,156.14,5.55822532]
[1729357739437,6.4021,156.2,156.14,3.35053526]
[1729357739633,6.4021,156.2,156.14,5.55822532]
[1729357739826,6.4021,156.2,156.15,3.35053526]
[1729357740155,6.4021,156.2,156.16,3.35053526]
[1729357740326,20.0,156.22,156.12,44.890484]
[1729357740532,20.0,156.22,156.13,2.20776397]
[1729357740533,6.4024,156.19,156.13,2.20776397]
[1729357740727,6.4024,156.19,156.14,3.35295466]
[1729357741845,6.4024,156.19,156.15,3.35295466]
[1729357742530,6.4024,156.19,156.16,3.35295466]
[1729357742853,6.4024,156.19,156.12,44.890484]
[1729357743156,6.4024,156.19,156.13,3.35301666]
[1729357744555,6.4024,156.19,156.14,3.35300134]
[1729357744757,6.4024,156.19,156.15,3.35300134]
[1729357744941,6.4024,156.19,156.16,3.35300134]
[1729357745261,6.4024,156.19,156.12,44.890484]
[1729357745639,6.4024,156.19,156.13,3.35294713]
[1729357745936,6.4024,156.19,156.14,3.35294713]
[1729357746138,6.4024,156.19,156.15,3.35294713]
[1729357746328,6.4024,156.19,156.16,3.35294713]
[1729357746534,6.4024,156.19,156.12,44.890484]
[1729357746735,6.4024,156.19,156.13,3.35290327]
[1729357747058,6.4024,156.19,156.12,44.890484]
[1729357747246,6.4024,156.19,156.13,3.35290327]
[1729357747853,6.4024,156.19,156.14,3.35290327]
[1729357748059,6.4024,156.19,156.15,3.35290327]
[1729357748261,6.4024,156.19,156.16,3.35290327]
[1729357748459,6.4024,156.19,156.12,44.890484]
[1729357748663,6.4024,156.19,156.13,3.35303185]
[1729357748851,6.4024,156.19,156.14,3.35303185]
[1729357749059,6.4024,156.19,156.15,3.35303185]
[1729357749266,6.4024,156.19,156.16,3.35303185]
[1729357749562,6.4024,156.19,156.12,44.890484]
[1729357749740,6.4024,156.19,156.13,3.35308751]
[1729357749940,6.4024,156.19,156.14,3.35308751]
[1729357750242,6.4024,156.19,156.15,3.35308751]
[1729357750445,6.4024,156.19,156.16,3.35308751]
[1729357750741,6.4024,156.19,156.12,44.890484]
[1729357750942,6.4024,156.19,156.13,3.35318871]
[1729357751140,6.4024,156.19,156.12,44.890484]
[1729357751141,6.4024,156.19,156.14,3.35318871]
[1729357751344,6.4024,156.19,156.15,3.35318871]
[1729357751560,6.4024,156.19,156.16,3.35318871]
[1729357751762,6.4024,156.19,156.12,44.890484]
[1729357752067,6.4024,156.19,156.13,3.35321988]
[1729357752265,1.11343021,156.21,156.14,3.35321988]
[1729357752567,30.72277683,156.24,156.16,23.776884]
[1729357752759,24.32237683,156.24,156.17,3.35321988]
[1729357752942,15.08567683,156.24,156.17,3.35321988]
[1729357753262,15.08567683,156.24,156.18,3.35321988]
[1729357753465,15.08567683,156.24,156.19,3.35321988]
[1729357754270,15.08567683,156.24,156.17,22.4819]
[1729357754467,8.68527683,156.24,156.18,23.776884]
[1729357755046,8.68527683,156.24,156.18,27.12520562]
[1729357756041,20.0,156.24,156.19,3.34832162]
[1729357756366,6.3991,156.27,156.18,23.776884]
[1729357757245,6.3991,156.27,156.2,23.776884]
[1729357757446,6.3991,156.27,156.18,23.776884]
[1729357757646,6.3991,156.27,156.2,23.776884]
[1729357757869,6.3991,156.27,156.18,23.776884]
[1729357758056,6.3991,156.27,156.2,23.776884]
[1729357758845,6.3998,156.26,156.17,22.4819]
[1729357759066,6.67737274,156.3,156.19,23.776884]
[1729357759067,6.4,156.25,156.19,23.776884]
[1729357759265,6.4,156.25,156.18,23.776884]
[1729357760774,6.3996,156.26,156.18,23.776884]
[1729357761175,20.0,156.29,156.18,23.776884]
[1729357761478,20.0,156.27,156.17,22.4819]
[1729357761662,35.9979,156.27,156.17,22.4819]
[1729357761856,6.4007,156.24,156.18,3.34233337]
[1729357762049,6.4007,156.24,156.18,6.68465718]
[1729357764175,6.4007,156.24,156.18,3.34233337]
[1729357765770,6.3995,156.26,156.18,3.34233337]
[1729357765956,6.3995,156.26,156.19,23.776884]
[1729357768285,6.3995,156.26,156.18,23.776884]
[1729357770680,20.0,156.27,156.18,23.776884]
[1729357770997,20.0,156.27,156.2,23.776884]
[1729357771158,20.0,156.27,156.18,23.776884]
[1729357771663,26.3992,156.27,156.18,23.776884]
[1729357771865,26.3992,156.27,156.2,23.776884]
[1729357777780,27.51214577,156.27,156.2,23.776884]
[1729357778493,26.3992,156.27,156.2,23.776884]
[1729357779490,20.0,156.27,156.17,22.4819]
[1729357779693,20.0,156.27,156.18,27.11320918]
[1729357779897,6.4001,156.25,156.18,23.776884]
[1729357783409,20.0,156.27,156.18,23.776884]
[1729357783695,20.0,156.27,156.2,23.776884]
[1729357784878,22.0305,156.28,156.2,23.776884]
[1729357785272,6.399,156.28,156.2,23.776884]
[1729357787396,6.3984,156.29,156.2,23.776884]
[1729357787603,20.0,156.28,156.2,23.776884]
[1729357789586,1.1128493,156.29,156.2,23.776884]
[1729357789902,6.3995,156.26,156.17,22.4819]
[1729357790783,6.3995,156.26,156.18,3.3344403]
[1729357790976,6.4001,156.25,156.19,23.776884]
[1729357791172,6.4001,156.25,156.18,23.776884]
[1729357791408,6.4001,156.25,156.19,3.33574186]
[1729357791702,6.4009,156.23,156.19,3.33574186]
[1729357791893,16.0757,156.27,156.18,3.33574186]
[1729357792076,6.4004,156.24,156.18,3.33574186]
[1729357792477,6.4004,156.24,156.16,3.33574186]
[1729357792682,6.4004,156.24,156.17,3.33574186]
[1729357792880,6.4004,156.24,156.15,7.24141043]
[1729357792881,6.4004,156.24,156.18,3.33574186]
[1729357793102,6.4004,156.24,156.15,7.24141043]
[1729357793103,6.4004,156.24,156.16,3.3371143]